fUSD/lending_fUSD_20250215
["ID","MTS","AMOUNT","RATE_DAILY","PERIOD"]
[353194734,1739640654987,-500.0,0.00011943,2]
[353194735,1739640654997,-180.896505,0.00011943,2]
[353194736,1739640655006,-500.0,0.00011943,2]
[353194737,1739640655016,-500.0,0.00011943,2]
[353194738,1739640655025,-500.0,0.00011943,2]
[353194739,1739640655035,-557.75,0.00011943,2]
[353194740,1739640655045,-826.89,0.00011943,2]
[353194741,1739640655054,-364.085208,0.00011943,2]
[353194742,1739640655063,-500.0,0.00011943,2]
[353194743,1739640655073,-551.39,0.00011943,2]
[353194744,1739640655082,-758.76,0.00011943,2]
[353194745,1739640655091,-574.22,0.00011943,2]
[353194746,1739640655100,-500.0,0.00011943,2]
[353194747,1739640655109,-500.0,0.00011943,2]
[353194748,1739640655119,-664.12,0.00011943,2]
[353194749,1739640655128,-647.76,0.00011943,2]
[353194750,1739640655139,-500.0,0.00011943,2]
[353194751,1739640655150,-679.9,0.00011943,2]
[353194752,1739640655160,-560.32,0.00011943,2]
[353194753,1739640655169,-500.0,0.00011943,2]
[353194754,1739640655182,-500.0,0.00011943,2]
[353194755,1739640655191,-1774.1,0.00011943,2]
[353194756,1739640655201,-500.0,0.00011943,2]
[353194757,1739640655210,-409.28,0.00011943,2]
[353194758,1739640655221,-386.68,0.00011943,2]
[353194759,1739640655233,-567.85,0.00011943,2]
[353194760,1739640655243,-536.13,0.00011943,2]
[353194761,1739640655252,-500.0,0.00011943,2]
[353194762,1739640655262,-810.11,0.00011943,2]
[353194763,1739640655272,-500.0,0.00011943,2]
[353194764,1739640655281,-1032.21,0.00011943,2]
[353194765,1739640655290,-500.0,0.00011943,2]
[353194766,1739640655299,-1501.05,0.00011943,2]
[353194767,1739640655308,-500.0,0.00011943,2]
[353194768,1739640655319,-644.12,0.00011943,2]
[353194769,1739640655328,-500.0,0.00011943,2]
[353194770,1739640655338,-500.0,0.00011943,2]
[353194771,1739640655347,-701.46,0.00011943,2]
[353194772,1739640655356,-917.15,0.00011943,2]
[353194773,1739640655366,-500.0,0.00011943,2]
[353194774,1739640655375,-506.75,0.00011943,2]
[353194775,1739640655384,-845.55,0.00011943,2]
[353194776,1739640655393,-500.0,0.00011943,2]
[353194777,1739640655402,-893.05,0.00011943,2]
[353194778,1739640655412,-500.0,0.00011943,2]
[353194779,1739640655421,-500.0,0.00011943,2]
[353194780,1739640655430,-1077.49,0.00011943,2]
[353194781,1739640655440,-500.0,0.00011943,2]
[353194782,1739640655449,-625.32,0.00011943,2]
[353194783,1739640655458,-500.0,0.00011943,2]
[353194784,1739640655468,-500.0,0.00011943,2]
[353194785,1739640655477,-500.0,0.00011943,2]
[353194786,1739640655486,-500.0,0.00011943,2]
[353194787,1739640655495,-500.0,0.00011943,2]
[353194788,1739640655504,-833.02,0.00011943,2]
[353194789,1739640655514,-629.24,0.00011943,2]
[353194790,1739640655524,-1985.97,0.00011943,2]
[353194791,1739640655533,-150.0,0.00011943,2]
[353194792,1739640655542,-280.88723074,0.00011944,2]
[353194793,1739640655551,-500.0,0.00011944,2]
[353194794,1739640655561,-500.0,0.00011944,2]
[353194795,1739640655570,-500.0,0.00011944,2]
[353194796,1739640655579,-556.72926254,0.00011944,2]
[353194797,1739640655588,-500.0,0.00011944,2]
[353194798,1739640655598,-738.52,0.00011944,2]
[353194799,1739640655607,-500.0,0.00011944,2]
[353194800,1739640655616,-500.0,0.00011944,2]
[353194801,1739640655625,-500.0,0.00011944,2]
[353194802,1739640655634,-500.0,0.00011944,2]
[353194803,1739640655644,-500.0,0.00011944,2]
[353194804,1739640655653,-497.64,0.00011945,2]
[353194805,1739640655663,-200.0,0.00011945,2]
[353194806,1739640655672,-500.0,0.00011945,2]
[353194807,1739640655681,-500.0,0.00011945,2]
[353194808,1739640655691,-571.48,0.00011957,2]
[353194809,1739640655701,-512.53,0.00011957,2]
[353194810,1739640655710,-500.0,0.00011957,2]
[353194811,1739640655720,-500.0,0.00011957,2]
[353194812,1739640655731,-844.08,0.00011957,2]
[353194813,1739640655741,-678.77,0.00011957,2]
[353194814,1739640655750,-578.69,0.00011957,2]
[353194815,1739640655759,-836.8,0.00011957,2]
[353194816,1739640655769,-502.58,0.00011957,2]
[353194817,1739640655779,-500.0,0.00011957,2]
[353194818,1739640655788,-830.02,0.00011957,2]
[353194819,1739640655798,-932.26,0.00011957,2]
[353194820,1739640655809,-651.91,0.00011957,2]
[353194821,1739640655818,-521.69,0.00011957,2]
[353194822,1739640655827,-500.0,0.00011957,2]
[353194823,1739640655838,-2314.63,0.00011957,2]
[353194824,1739640655847,-500.0,0.00011957,2]
[353194825,1739640655857,-500.0,0.00011957,2]
[353194826,1739640655866,-500.0,0.00011957,2]
[353194827,1739640655875,-1694.07,0.00011957,2]
[353194828,1739640655884,-500.0,0.00011957,2]
[353194829,1739640655893,-805.43,0.00011957,2]
[353194830,1739640655903,-553.77,0.00011957,2]
[353194831,1739640655912,-157.98,0.00011967,2]
[353194832,1739640655922,-1500.0,0.00012,2]
[353194833,1739640655931,-1000.0,0.00012,2]
[353194834,1739640655940,-700.00000006,0.00012,3]
[353194835,1739640655950,-5004.91016,0.00012,2]
[353194836,1739640655961,-661.5,0.00012025,2]
[353194837,1739640655971,-522.73,0.00012025,2]
[353194838,1739640655980,-500.0,0.00012025,2]
[353194839,1739640655990,-500.0,0.00012025,2]
[353194840,1739640655999,-500.0,0.00012025,2]
[353194841,1739640656009,-500.0,0.00012025,2]
[353194842,1739640656018,-500.0,0.00012025,2]
[353194843,1739640656027,-500.0,0.00012025,2]
[353194844,1739640656036,-500.0,0.00012025,2]
[353194845,1739640656046,-500.0,0.00012025,2]
[353194846,1739640656055,-500.0,0.00012025,2]
[353194847,1739640656063,-161.94,0.00012025,2]
[353194848,1739640656073,-500.0,0.00012025,2]
[353194849,1739640656083,-500.0,0.00012025,2]
[353194850,1739640656092,-500.0,0.00012025,2]
[353194851,1739640656101,-500.0,0.00012025,2]
[353194852,1739640656111,-1073.26,0.00012025,2]
[353194853,1739640656120,-702.58,0.00012025,2]
[353194854,1739640656130,-500.0,0.00012025,2]
[353194855,1739640656139,-749.99,0.00012025,2]
[353194856,1739640656150,-500.0,0.00012025,2]
[353194857,1739640656159,-500.0,0.00012025,2]
[353194858,1739640656169,-500.0,0.00012025,2]
[353194859,1739640656179,-180.896505,0.00012025,2]
[353194860,1739640656191,-500.0,0.00012025,2]
[353194861,1739640656200,-500.0,0.00012025,2]
[353194862,1739640656209,-298.62,0.00012025,2]
[353194863,1739640656220,-557.75,0.00012025,2]
[353194864,1739640656231,-826.89,0.00012025,2]
[353194865,1739640656241,-364.085208,0.00012025,2]
[353194866,1739640656251,-500.0,0.00012025,2]
[353194867,1739640656261,-551.39,0.00012025,2]
[353194868,1739640656271,-758.76,0.00012025,2]
[353194869,1739640656281,-574.22,0.00012025,2]
[353194870,1739640656290,-455.1834339,0.00012025,2]
[353194871,1739640656301,-500.0,0.00012025,2]
[353194872,1739640656310,-664.12,0.00012025,2]
[353194873,1739640656320,-647.76,0.00012025,2]
[353194874,1739640656474,-500.0,0.00012025,2]
[353194875,1739640656484,-679.9,0.00012025,2]
[353194876,1739640656494,-500.0,0.00012025,2]
[353194877,1739640656504,-500.0,0.00012025,2]
[353194878,1739640656513,-1774.1,0.00012025,2]
[353194879,1739640656522,-500.0,0.00012025,2]
[353194880,1739640656532,-567.85,0.00012025,2]
[353194881,1739640656541,-536.13,0.00012025,2]
[353194882,1739640656550,-500.0,0.00012025,2]
[353194883,1739640656561,-810.11,0.00012025,2]
[353194884,1739640656570,-500.0,0.00012025,2]
[353194885,1739640656580,-1032.21,0.00012025,2]
[353194886,1739640656589,-500.0,0.00012025,2]
[353194887,1739640656599,-1501.05,0.00012025,2]
[353194888,1739640656609,-500.0,0.00012025,2]
[353194889,1739640656620,-644.12,0.00012025,2]
[353194890,1739640656629,-500.0,0.00012025,2]
[353194891,1739640656638,-500.0,0.00012025,2]
[353194892,1739640656648,-701.46,0.00012025,2]
[353194893,1739640656657,-917.15,0.00012025,2]
[353194894,1739640656666,-500.0,0.00012025,2]
[353194895,1739640656676,-506.75,0.00012025,2]
[353194896,1739640656685,-845.55,0.00012025,2]
[353194897,1739640656695,-500.0,0.00012025,2]
[353194898,1739640656704,-893.05,0.00012025,2]
[353194899,1739640656714,-500.0,0.00012025,2]
[353194900,1739640656724,-500.0,0.00012025,2]
[353194901,1739640656733,-1077.49,0.00012025,2]
[353194902,1739640656743,-500.0,0.00012025,2]
[353194903,1739640656752,-625.32,0.00012025,2]
[353194904,1739640656761,-500.0,0.00012025,2]
[353194905,1739640656771,-500.0,0.00012025,2]
[353194906,1739640656780,-500.0,0.00012025,2]
[353194907,1739640656789,-500.0,0.00012025,2]
[353194908,1739640656798,-626.59,0.00012025,2]
[353194909,1739640656807,-833.02,0.00012025,2]
[353194910,1739640656818,-629.24,0.00012025,2]
[353194911,1739640656827,-1985.97,0.00012025,2]
[353194912,1739640656837,-500.0,0.00012026,2]
[353194913,1739640656846,-500.0,0.00012026,2]
[353194914,1739640656855,-500.0,0.00012026,2]
[353194915,1739640656864,-500.0,0.00012026,2]
[353194916,1739640656874,-738.52,0.00012026,2]
[353194917,1739640656883,-500.0,0.00012026,2]
[353194918,1739640656894,-500.0,0.00012026,2]
[353194919,1739640656904,-500.0,0.00012026,2]
[353194920,1739640656913,-500.0,0.00012026,2]
[353194921,1739640656923,-500.0,0.00012026,2]
[353194922,1739640656932,-500.0,0.00012027,2]
[353194923,1739640656942,-500.0,0.00012027,2]
[353194924,1739640656951,-571.48,0.00012039,2]
[353194925,1739640656961,-512.53,0.00012039,2]
[353194926,1739640656972,-500.0,0.00012039,2]
[353194927,1739640656981,-273.68,0.00012039,2]
[353194928,1739640656991,-844.08,0.00012039,2]
[353194929,1739640657001,-678.77,0.00012039,2]
[353194930,1739640657010,-578.69,0.00012039,2]
[353194931,1739640657019,-836.8,0.00012039,2]
[353194932,1739640657028,-502.58,0.00012039,2]
[353194933,1739640657038,-500.0,0.00012039,2]
[353194934,1739640657048,-830.02,0.00012039,2]
[353194935,1739640657059,-932.26,0.00012039,2]
[353194936,1739640657068,-651.91,0.00012039,2]
[353194937,1739640657078,-521.69,0.00012039,2]
[353194938,1739640657088,-500.0,0.00012039,2]
[353194939,1739640657097,-2314.63,0.00012039,2]
[353194940,1739640657106,-500.0,0.00012039,2]
[353194941,1739640657116,-500.0,0.00012039,2]
[353194942,1739640657125,-500.0,0.00012039,2]
[353194943,1739640657137,-1694.07,0.00012039,2]
[353194944,1739640657147,-500.0,0.00012039,2]
[353194945,1739640657158,-805.43,0.00012039,2]
[353194946,1739640657169,-553.77,0.00012039,2]
[353194947,1739640657179,-216.0,0.0001205,2]
[353194948,1739640657188,-10133.62755885,0.00012057,2]
[353194949,1739640657198,-172.124904,0.00012062,2]
[353194950,1739640657209,-200.0,0.00012064,2]
[353194951,1739640657219,-29999.99,0.00012087,2]
[353194952,1739640657229,-150.0,0.00012103,2]
[353194953,1739640657239,-150.0,0.00012103,2]
[353194954,1739640657249,-150.0,0.00012103,2]
[353194955,1739640657258,-661.5,0.00012107,2]
[353194956,1739640657267,-522.73,0.00012107,2]
[353194957,1739640657277,-500.0,0.00012107,2]
[353194958,1739640657286,-500.0,0.00012107,2]
[353194959,1739640657295,-500.0,0.00012107,2]
[353194960,1739640657305,-500.0,0.00012107,2]
[353194961,1739640657314,-500.0,0.00012107,2]
[353194962,1739640657325,-500.0,0.00012107,2]
[353194963,1739640657334,-500.0,0.00012107,2]
[353194964,1739640657344,-500.0,0.00012107,2]
[353194965,1739640657354,-500.0,0.00012107,2]
[353194966,1739640657363,-500.0,0.00012107,2]
[353194967,1739640657373,-252.14,0.00012107,2]
[353194968,1739640657382,-500.0,0.00012107,2]
[353194969,1739640657392,-500.0,0.00012107,2]
[353194970,1739640657401,-1073.26,0.00012107,2]
[353194971,1739640657411,-702.58,0.00012107,2]
[353194972,1739640657420,-500.0,0.00012107,2]
[353194973,1739640657430,-749.99,0.00012107,2]
[353194974,1739640657440,-500.0,0.00012107,2]
[353194975,1739640657449,-500.0,0.00012107,2]
[353194976,1739640657459,-500.0,0.00012107,2]
[353194977,1739640657469,-180.896505,0.00012107,2]
[353194978,1739640657478,-500.0,0.00012107,2]
[353194979,1739640657490,-500.0,0.00012107,2]
[353194980,1739640657500,-557.75,0.00012107,2]
[353194981,1739640657509,-826.89,0.00012107,2]
[353194982,1739640657518,-364.085208,0.00012107,2]
[353194983,1739640657527,-500.0,0.00012107,2]
[353194984,1739640657536,-551.39,0.00012107,2]
[353194985,1739640657546,-758.76,0.00012107,2]
[353194986,1739640657555,-574.22,0.00012107,2]
[353194987,1739640657566,-500.0,0.00012107,2]
[353194988,1739640657576,-664.12,0.00012107,2]
[353194989,1739640657586,-647.76,0.00012107,2]
[353194990,1739640657596,-500.0,0.00012107,2]
[353194991,1739640657605,-679.9,0.00012107,2]
[353194992,1739640657615,-500.0,0.00012107,2]
[353194993,1739640657624,-500.0,0.00012107,2]
[353194994,1739640657633,-1774.1,0.00012107,2]
[353194995,1739640657642,-500.0,0.00012107,2]
[353194996,1739640657652,-567.85,0.00012107,2]
[353194997,1739640657661,-536.13,0.00012107,2]
[353194998,1739640657670,-500.0,0.00012107,2]
[353194999,1739640657679,-810.11,0.00012107,2]
[353195000,1739640657689,-500.0,0.00012107,2]
[353195001,1739640657698,-1032.21,0.00012107,2]
[353195002,1739640657708,-500.0,0.00012107,2]
[353195003,1739640657718,-1501.05,0.00012107,2]
[353195004,1739640657729,-500.0,0.00012107,2]
[353195005,1739640657740,-644.12,0.00012107,2]
[353195006,1739640657750,-500.0,0.00012107,2]
[353195007,1739640657760,-500.0,0.00012107,2]
[353195008,1739640657771,-701.46,0.00012107,2]
[353195009,1739640657780,-917.15,0.00012107,2]
[353195010,1739640657790,-500.0,0.00012107,2]
[353195011,1739640657799,-506.75,0.00012107,2]
[353195012,1739640657808,-845.55,0.00012107,2]
[353195013,1739640657817,-500.0,0.00012107,2]
[353195014,1739640657826,-893.05,0.00012107,2]
[353195015,1739640657838,-500.0,0.00012107,2]
[353195016,1739640657848,-500.0,0.00012107,2]
[353195017,1739640657857,-1077.49,0.00012107,2]
[353195018,1739640657867,-500.0,0.00012107,2]
[353195019,1739640657877,-625.32,0.00012107,2]
[353195020,1739640657888,-500.0,0.00012107,2]
[353195021,1739640657903,-500.0,0.00012107,2]
[353195022,1739640657914,-180.9,0.00012107,2]
[353195023,1739640657925,-500.0,0.00012107,2]
[353195024,1739640657935,-833.02,0.00012107,2]
[353195025,1739640657945,-629.24,0.00012107,2]
[353195026,1739640657955,-1985.97,0.00012107,2]
[353195027,1739640657964,-500.0,0.00012109,2]
[353195028,1739640657973,-500.0,0.00012109,2]
[353195029,1739640657983,-500.0,0.00012109,2]
[353195030,1739640657993,-500.0,0.00012109,2]
[353195031,1739640658002,-738.52,0.00012109,2]
[353195032,1739640658012,-500.0,0.00012109,2]
[353195033,1739640658022,-500.0,0.00012109,2]
[353195034,1739640658031,-500.0,0.00012109,2]
[353195035,1739640658040,-500.0,0.00012109,2]
[353195036,1739640658050,-500.0,0.00012109,2]
[353195037,1739640658059,-500.0,0.00012109,2]
[353195038,1739640658068,-531.33384186,0.00012109,2]
[353195039,1739640658078,-3069.78032547,0.00012119,2]
[353195040,1739640658087,-571.48,0.00012121,2]
[353195041,1739640658097,-512.53,0.00012121,2]
[353195042,1739640658112,-500.0,0.00012121,2]
[353195043,1739640658127,-844.08,0.00012121,2]
[353195044,1739640658142,-678.77,0.00012121,2]
[353195045,1739640658155,-578.69,0.00012121,2]
[353195046,1739640658167,-836.8,0.00012121,2]
[353195047,1739640658182,-502.58,0.00012121,2]
[353195048,1739640658197,-500.0,0.00012121,2]
[353195049,1739640658210,-830.02,0.00012121,2]
[353195050,1739640658223,-932.26,0.00012121,2]
[353195051,1739640658236,-651.91,0.00012121,2]
[353195052,1739640658248,-521.69,0.00012121,2]
[353195053,1739640658261,-500.0,0.00012121,2]
[353195054,1739640658272,-2314.63,0.00012121,2]
[353195055,1739640658284,-500.0,0.00012121,2]
[353195056,1739640658298,-500.0,0.00012121,2]
[353195057,1739640658311,-486.66,0.00012121,2]
[353195058,1739640658325,-1694.07,0.00012121,2]
[353195059,1739640658341,-500.0,0.00012121,2]
[353195060,1739640658355,-805.43,0.00012121,2]
[353195061,1739640658368,-553.77,0.00012121,2]
[353195062,1739640658380,-172.548647,0.00012128,5]
[353195063,1739640658395,-280.88723074,0.00012148,2]
[353195064,1739640658408,-661.5,0.0001219,2]
[353195065,1739640658420,-522.73,0.0001219,2]
[353195066,1739640658434,-500.0,0.0001219,2]
[353195067,1739640658446,-179.95422043,0.0001219,2]
[353195068,1739640658459,-500.0,0.0001219,2]
[353195069,1739640658472,-500.0,0.0001219,2]
[353195070,1739640658486,-500.0,0.0001219,2]
[353195071,1739640658498,-500.0,0.0001219,2]
[353195072,1739640658511,-500.0,0.0001219,2]
[353195073,1739640658522,-203.40939893,0.0001219,2]
[353195074,1739640658533,-500.0,0.0001219,2]
[353195075,1739640658546,-323.62,0.0001219,2]
[353195076,1739640658562,-265.01,0.0001219,2]
[353195077,1739640658575,-500.0,0.0001219,2]
[353195078,1739640658587,-1073.26,0.0001219,2]
[353195079,1739640658596,-702.58,0.0001219,2]
[353195080,1739640658607,-500.0,0.0001219,2]
[353195081,1739640658619,-749.99,0.0001219,2]
[353195082,1739640658633,-419.22,0.0001219,2]
[353195083,1739640658646,-572.1,0.0001219,2]
[353195084,1739640658657,-313.64,0.0001219,2]
[353195085,1739640658668,-180.896505,0.0001219,2]
[353195086,1739640658679,-500.0,0.0001219,2]
[353195087,1739640658692,-500.0,0.0001219,2]
[353195088,1739640658703,-557.75,0.0001219,2]
[353195089,1739640658715,-826.89,0.0001219,2]
[353195090,1739640658726,-364.085208,0.0001219,2]
[353195091,1739640658738,-500.0,0.0001219,2]
[353195092,1739640658750,-551.39,0.0001219,2]
[353195093,1739640658762,-758.76,0.0001219,2]
[353195094,1739640658773,-574.22,0.0001219,2]
[353195095,1739640658784,-500.0,0.0001219,2]
[353195096,1739640658795,-664.12,0.0001219,2]
[353195097,1739640658807,-647.76,0.0001219,2]
[353195098,1739640658819,-500.0,0.0001219,2]
[353195099,1739640658832,-679.9,0.0001219,2]
[353195100,1739640658844,-500.0,0.0001219,2]
[353195101,1739640658856,-500.0,0.0001219,2]
[353195102,1739640658867,-1774.1,0.0001219,2]
[353195103,1739640658879,-500.0,0.0001219,2]
[353195104,1739640658892,-567.85,0.0001219,2]
[353195105,1739640658904,-536.13,0.0001219,2]
[353195106,1739640658916,-500.0,0.0001219,2]
[353195107,1739640658928,-810.11,0.0001219,2]
[353195108,1739640658939,-500.0,0.0001219,2]
[353195109,1739640658951,-1032.21,0.0001219,2]
[353195110,1739640658963,-500.0,0.0001219,2]
[353195111,1739640658974,-1501.05,0.0001219,2]
[353195112,1739640658986,-432.10760143,0.0001219,2]
[353195113,1739640658998,-644.12,0.0001219,2]
[353195114,1739640659010,-500.0,0.0001219,2]
[353195115,1739640659023,-500.0,0.0001219,2]
[353195116,1739640659034,-701.46,0.0001219,2]
[353195117,1739640659046,-917.15,0.0001219,2]
[353195118,1739640659058,-500.0,0.0001219,2]
[353195119,1739640659069,-506.75,0.0001219,2]
[353195120,1739640659080,-845.55,0.0001219,2]
[353195121,1739640659091,-500.0,0.0001219,2]
[353195122,1739640659103,-893.05,0.0001219,2]
[353195123,1739640659116,-500.0,0.0001219,2]
[353195124,1739640659127,-500.0,0.0001219,2]
[353195125,1739640659142,-1077.49,0.0001219,2]
[353195126,1739640659154,-500.0,0.0001219,2]
[353195127,1739640659166,-625.32,0.0001219,2]
[353195128,1739640659179,-500.0,0.0001219,2]
[353195129,1739640659190,-500.0,0.0001219,2]
[353195130,1739640659201,-500.0,0.0001219,2]
[353195131,1739640659214,-833.02,0.0001219,2]
[353195132,1739640659226,-629.24,0.0001219,2]
[353195133,1739640659237,-1985.97,0.0001219,2]
[353195134,1739640659248,-500.0,0.00012191,2]
[353195135,1739640659260,-500.0,0.00012191,2]
[353195136,1739640659272,-500.0,0.00012191,2]
[353195137,1739640659284,-500.0,0.00012191,2]
[353195138,1739640659298,-738.52,0.00012191,2]
[353195139,1739640659310,-500.0,0.00012191,2]
[353195140,1739640659321,-500.0,0.00012191,2]
[353195141,1739640659333,-500.0,0.00012191,2]
[353195142,1739640659344,-500.0,0.00012191,2]
[353195143,1739640659356,-500.0,0.00012191,2]
[353195144,1739640659367,-500.0,0.00012191,2]
[353195145,1739640659379,-222953.41305441,0.000122,2]
[353195146,1739640659391,-571.48,0.00012203,2]
[353195147,1739640659403,-512.53,0.00012203,2]
[353195148,1739640659415,-500.0,0.00012203,2]
[353195149,1739640659427,-844.08,0.00012203,2]
[353195150,1739640659439,-678.77,0.00012203,2]
[353195151,1739640659451,-578.69,0.00012203,2]
[353195152,1739640659463,-836.8,0.00012203,2]
[353195153,1739640659476,-502.58,0.00012203,2]
[353195154,1739640659488,-500.0,0.00012203,2]
[353195155,1739640659499,-830.02,0.00012203,2]
[353195156,1739640659511,-932.26,0.00012203,2]
[353195157,1739640659523,-651.91,0.00012203,2]
[353195158,1739640659533,-521.69,0.00012203,2]
[353195159,1739640659545,-502.24,0.00012203,2]
[353195160,1739640659556,-2314.63,0.00012203,2]
[353195161,1739640659568,-500.0,0.00012203,2]
[353195162,1739640659580,-500.0,0.00012203,2]
[353195163,1739640659591,-1694.07,0.00012203,2]
[353195164,1739640659604,-500.0,0.00012203,2]
[353195165,1739640659616,-805.43,0.00012203,2]
[353195166,1739640659628,-150.0,0.00012262,2]
[353195167,1739640659639,-661.5,0.00012272,2]
[353195168,1739640659650,-522.73,0.00012272,2]
[353195169,1739640659662,-500.0,0.00012272,2]
[353195170,1739640659673,-500.0,0.00012272,2]
[353195171,1739640659685,-500.0,0.00012272,2]
[353195172,1739640659696,-500.0,0.00012272,2]
[353195173,1739640659707,-500.0,0.00012272,2]
[353195174,1739640659719,-496.5,0.00012272,2]
[353195175,1739640659730,-647.47846428,0.00012272,2]
[353195176,1739640659742,-500.0,0.00012272,2]
[353195177,1739640659753,-1073.26,0.00012272,2]
[353195178,1739640659765,-702.58,0.00012272,2]
[353195179,1739640659777,-500.0,0.00012272,2]
[353195180,1739640659789,-749.99,0.00012272,2]
[353195181,1739640659802,-180.896505,0.00012272,2]
[353195182,1739640659813,-367.18720658,0.00012272,2]
[353195183,1739640659831,-500.0,0.00012272,2]
[353195184,1739640659843,-557.75,0.00012272,2]
[353195185,1739640659855,-826.89,0.00012272,2]
[353195186,1739640659867,-364.085208,0.00012272,2]
[353195187,1739640659880,-500.0,0.00012272,2]
[353195188,1739640659892,-551.39,0.00012272,2]
[353195189,1739640659903,-758.76,0.00012272,2]
[353195190,1739640659913,-574.22,0.00012272,2]
[353195191,1739640659922,-500.0,0.00012272,2]
[353195192,1739640659932,-664.12,0.00012272,2]
[353195193,1739640659941,-647.76,0.00012272,2]
[353195194,1739640659951,-500.0,0.00012272,2]
[353195195,1739640659964,-679.9,0.00012272,2]
[353195196,1739640659974,-500.0,0.00012272,2]
[353195197,1739640659984,-1774.1,0.00012272,2]
[353195198,1739640659997,-500.0,0.00012272,2]
[353195199,1739640660006,-500.0,0.00012272,2]
[353195200,1739640660016,-567.85,0.00012272,2]
[353195201,1739640660026,-536.13,0.00012272,2]
[353195202,1739640660035,-500.0,0.00012272,2]
[353195203,1739640660278,-810.11,0.00012272,2]
[353195204,1739640660304,-500.0,0.00012272,2]
[353195205,1739640660319,-1032.21,0.00012272,2]
[353195206,1739640660328,-500.0,0.00012272,2]
[353195207,1739640660338,-1501.05,0.00012272,2]
[353195208,1739640660348,-644.12,0.00012272,2]
[353195209,1739640660358,-500.0,0.00012272,2]
[353195210,1739640660368,-500.0,0.00012272,2]
[353195211,1739640660378,-701.46,0.00012272,2]
[353195212,1739640660387,-917.15,0.00012272,2]
[353195213,1739640660396,-150.88,0.00012272,2]
[353195214,1739640660405,-506.75,0.00012272,2]
[353195215,1739640660414,-845.55,0.00012272,2]
[353195216,1739640660424,-500.0,0.00012272,2]
[353195217,1739640660433,-893.05,0.00012272,2]
[353195218,1739640660443,-500.0,0.00012272,2]
[353195219,1739640660453,-500.0,0.00012272,2]
[353195220,1739640660462,-500.0,0.00012272,2]
[353195221,1739640660472,-625.32,0.00012272,2]
[353195222,1739640660481,-1077.49,0.00012272,2]
[353195223,1739640660490,-500.0,0.00012272,2]
[353195224,1739640660501,-387.14,0.00012272,2]
[353195225,1739640660511,-500.0,0.00012272,2]
[353195226,1739640660521,-833.02,0.00012272,2]
[353195227,1739640660531,-629.24,0.00012272,2]
[353195228,1739640660540,-1985.97,0.00012272,2]
[353195229,1739640660550,-589.86,0.00012273,2]
[353195230,1739640660560,-500.0,0.00012273,2]
[353195231,1739640660569,-500.0,0.00012273,2]
[353195232,1739640660578,-500.0,0.00012273,2]
[353195233,1739640660588,-738.52,0.00012273,2]